fUST/lending_fUST_20250614
["ID","MTS","AMOUNT","RATE_DAILY","PERIOD"]
[365744194,1749867043037,-3000.0,0.00023,2]
[365744195,1749867043047,-152.0,0.00023,2]
[365744196,1749867043057,-200.0,0.00023,2]
[365744197,1749867043067,-3000.0,0.0002301,2]
[365744198,1749867043078,-365.2762568,0.00023014,2]
[365744199,1749867043087,-365.2762568,0.00023014,2]
[365744200,1749867043097,-3000.0,0.0002302,2]
[365744201,1749867043107,-3000.0,0.0002303,2]
[365744202,1749867043116,-1555.03753635,0.00023038,8]
[365744203,1749867043126,-3000.0,0.0002304,2]
[365744204,1749867043135,-3000.0,0.0002305,2]
[365744205,1749867043145,-3000.0,0.0002306,2]
[365744206,1749867043154,-3000.0,0.0002307,2]
[365744207,1749867043164,-600.0,0.00023073,2]
[365744208,1749867043173,-501.41379653,0.00023073,2]
[365744209,1749867043183,-500.0,0.00023073,2]
[365744210,1749867043192,-504.81255339,0.00023073,2]
[365744211,1749867043202,-500.0,0.00023073,2]
[365744212,1749867043212,-500.0,0.00023073,2]
[365744213,1749867043222,-500.0,0.00023073,2]
[365744214,1749867043231,-501.18193787,0.00023073,2]
[365744215,1749867043241,-500.0,0.00023073,2]
[365744216,1749867043251,-513.4045382,0.00023073,2]
[365744217,1749867043261,-501.36108504,0.00023073,2]
[365744218,1749867043270,-503.95759665,0.00023073,2]
[365744219,1749867043280,-501.03395832,0.00023073,2]
[365744220,1749867043290,-500.0,0.00023073,2]
[365744221,1749867043300,-500.0,0.00023073,2]
[365744222,1749867043309,-3000.0,0.0002308,2]
[365744223,1749867043320,-340.8,0.0002309,3]
[365744224,1749867043330,-3000.0,0.0002309,2]
[365744225,1749867043340,-2726.44,0.000231,3]
[365744226,1749867043350,-1363.22,0.000231,3]
[365744227,1749867043360,-681.6,0.000231,3]
[365744228,1749867043371,-3000.0,0.000231,2]
[365744229,1749867043380,-85507.04,0.000231,7]
[365744230,1749867043390,-845.10789306,0.000231,7]
[365744231,1749867043400,-160.0,0.000231,7]
[365744232,1749867043410,-213.28201367,0.000231,7]
[365744233,1749867043420,-460.0,0.00023109,4]
[365744234,1749867043430,-896.99,0.00023109,4]
[365744235,1749867043440,-1169.14,0.00023109,4]
[365744236,1749867043450,-3988.47,0.00023109,4]
[365744237,1749867043459,-460.0,0.00023109,4]
[365744238,1749867043469,-742.45,0.00023109,4]
[365744239,1749867043479,-558.16,0.00023109,4]
[365744240,1749867043491,-773.28,0.00023109,4]
[365744241,1749867043501,-1000.32,0.00023109,4]
[365744242,1749867043510,-460.0,0.00023109,4]
[365744243,1749867043520,-3000.0,0.0002311,2]
[365744244,1749867043530,-3000.0,0.0002312,2]
[365744245,1749867043540,-460.0,0.00023121,4]
[365744246,1749867043550,-460.0,0.00023121,4]
[365744247,1749867043560,-460.0,0.00023121,4]
[365744248,1749867043572,-1090.84,0.00023121,4]
[365744249,1749867043582,-460.0,0.00023121,4]
[365744250,1749867043592,-622.55,0.00023121,4]
[365744251,1749867043602,-460.0,0.00023121,4]
[365744252,1749867043612,-460.0,0.00023121,4]
[365744253,1749867043622,-460.0,0.00023121,4]
[365744254,1749867043632,-588.31,0.00023121,4]
[365744255,1749867043643,-393.0698166,0.00023121,4]
[365744256,1749867043654,-460.0,0.00023121,4]
[365744257,1749867043665,-701.63,0.00023121,4]
[365744258,1749867043676,-460.0,0.00023121,4]
[365744259,1749867043686,-1474.07,0.00023121,4]
[365744260,1749867043696,-512.02144995,0.00023121,4]
[365744261,1749867043706,-538.53,0.00023121,4]
[365744262,1749867043716,-460.0,0.00023121,4]
[365744263,1749867043726,-493.69,0.00023122,4]
[365744264,1749867043736,-583.12,0.00023122,2]
[365744265,1749867043746,-3000.0,0.0002313,2]
[365744266,1749867043755,-3000.0,0.0002314,2]
[365744267,1749867043765,-1555.03753635,0.00023141,8]
[365744268,1749867043775,-3385.09777,0.0002315,2]
[365744269,1749867043784,-629.12877101,0.00023152,2]
[365744270,1749867043794,-405.0,0.00023159,2]
[365744271,1749867043808,-405.0,0.00023159,2]
[365744272,1749867043818,-507.470537,0.00023163,3]
[365744273,1749867043827,-161.944292,0.00023182,2]
[365744274,1749867043837,-151.0,0.000232,6]
[365744275,1749867043847,-151.0,0.000232,6]
[365744276,1749867043857,-2785.0,0.00023215,2]
[365744277,1749867043867,-1242.94149564,0.00023242,2]
[365744278,1749867043876,-1555.03753635,0.00023245,8]
[365744279,1749867043887,-353.7115576,0.00023288,2]
[365744280,1749867043897,-1146.8323049,0.00023288,2]
[365744281,1749867043906,-156.5761506,0.00023288,2]
[365744282,1749867043916,-176.9937618,0.00023288,2]
[365744283,1749867043926,-573.7859869,0.00023288,2]
[365744284,1749867043936,-158.8714084,0.00023288,2]
[365744285,1749867043947,-158.8714084,0.00023288,2]
[365744286,1749867043957,-573.7859869,0.00023288,2]
[365744287,1749867043967,-176.9937618,0.00023288,2]
[365744288,1749867043981,-158.8714084,0.00023288,2]
[365744289,1749867043991,-153.0,0.00023288,2]
[365744290,1749867044001,-176.9937618,0.00023288,2]
[365744291,1749867044010,-573.7859869,0.00023288,2]
[365744292,1749867044020,-176.9937618,0.00023288,2]
[365744293,1749867044029,-158.8714084,0.00023288,2]
[365744294,1749867044039,-573.7859869,0.00023288,2]
[365744295,1749867044048,-158.8714084,0.00023288,2]
[365744296,1749867044058,-353.7088753,0.00023288,2]
[365744297,1749867044068,-153.0,0.00023288,2]
[365744298,1749867044077,-573.7859869,0.00023288,2]
[365744299,1749867044087,-158.8714084,0.00023288,2]
[365744300,1749867044096,-573.7859869,0.00023288,2]
[365744301,1749867044106,-573.7859869,0.00023288,2]
[365744302,1749867044115,-158.8714084,0.00023288,2]
[365744303,1749867044125,-153.0,0.00023288,2]
[365744304,1749867044136,-573.7859869,0.00023288,2]
[365744305,1749867044147,-158.8714084,0.00023288,2]
[365744306,1749867044156,-153.0,0.00023288,2]
[365744307,1749867044166,-3470.23,0.00023291,2]
[365744308,1749867044175,-3000.0,0.000233,2]
[365744309,1749867044184,-151.0,0.000233,5]
[365744310,1749867044194,-3000.0,0.0002331,2]
[365744311,1749867044204,-153.0,0.0002332,2]
[365744312,1749867044213,-153.0,0.0002332,2]
[365744313,1749867044222,-153.0,0.0002332,2]
[365744314,1749867044231,-153.0,0.0002332,2]
[365744315,1749867044240,-153.0,0.0002332,2]
[365744316,1749867044250,-3000.0,0.0002332,2]
[365744317,1749867044259,-575.0,0.00023322,2]
[365744318,1749867044268,-1795.953565,0.00023324,3]
[365744319,1749867044278,-3000.0,0.0002333,2]
[365744320,1749867044288,-3000.0,0.0002334,2]
[365744321,1749867044298,-1555.03753635,0.00023348,9]
[365744322,1749867044309,-3000.0,0.0002335,2]
[365744323,1749867044320,-3000.0,0.0002336,2]
[365744324,1749867044330,-3000.0,0.0002337,2]
[365744325,1749867044339,-168.0,0.00023372,2]
[365744326,1749867044349,-3000.0,0.0002338,2]
[365744327,1749867044359,-460.0,0.00023383,4]
[365744328,1749867044368,-896.99,0.00023383,4]
[365744329,1749867044378,-1169.14,0.00023383,4]
[365744330,1749867044387,-3988.47,0.00023383,4]
[365744331,1749867044397,-460.0,0.00023383,4]
[365744332,1749867044407,-742.45,0.00023383,4]
[365744333,1749867044416,-558.16,0.00023383,4]
[365744334,1749867044426,-773.28,0.00023383,4]
[365744335,1749867044436,-1000.32,0.00023383,4]
[365744336,1749867044445,-460.0,0.00023383,4]
[365744337,1749867044455,-3000.0,0.0002339,2]
[365744338,1749867044464,-460.0,0.00023395,4]
[365744339,1749867044476,-460.0,0.00023395,4]
[365744340,1749867044490,-460.0,0.00023395,4]
[365744341,1749867044506,-1090.84,0.00023395,4]
[365744342,1749867044516,-460.0,0.00023395,4]
[365744343,1749867044527,-622.55,0.00023395,4]
[365744344,1749867044538,-460.0,0.00023395,4]
[365744345,1749867044548,-377.77576305,0.00023395,4]
[365744346,1749867044558,-460.0,0.00023395,4]
[365744347,1749867044567,-588.31,0.00023395,4]
[365744348,1749867044577,-460.0,0.00023395,4]
[365744349,1749867044587,-701.63,0.00023395,4]
[365744350,1749867044597,-460.0,0.00023395,4]
[365744351,1749867044607,-1474.07,0.00023395,4]
[365744352,1749867044617,-538.53,0.00023395,4]
[365744353,1749867044627,-460.0,0.00023395,4]
[365744354,1749867044636,-493.69,0.00023396,4]
[365744355,1749867044646,-583.12,0.00023396,2]
[365744356,1749867044656,-3000.0,0.000234,2]
[365744357,1749867044665,-151.0,0.000234,9]
[365744358,1749867044675,-160.0,0.000234,3]
[365744359,1749867044684,-161.10336283,0.000234,5]
[365744360,1749867044693,-3000.0,0.0002341,2]
[365744361,1749867044703,-3000.0,0.0002342,2]
[365744362,1749867044712,-3000.0,0.0002343,2]
[365744363,1749867044723,-500.0,0.00023437,2]
[365744364,1749867044732,-3000.0,0.0002344,2]
[365744365,1749867044741,-151.0,0.0002344,7]
[365744366,1749867044750,-5000.0,0.0002344,2]
[365744367,1749867044760,-3000.0,0.0002345,2]
[365744368,1749867044770,-151.0,0.0002345,7]
[365744369,1749867044781,-1555.03753635,0.00023452,9]
[365744370,1749867044793,-3000.0,0.0002346,2]
[365744371,1749867044803,-151.0,0.0002346,7]
[365744372,1749867044812,-3000.0,0.0002347,2]
[365744373,1749867044821,-3000.0,0.0002348,2]
[365744374,1749867044831,-3000.0,0.0002349,2]
[365744375,1749867044840,-3000.0,0.000235,2]
[365744376,1749867044849,-151.0,0.000235,9]
[365744377,1749867044858,-3000.0,0.0002351,2]
[365744378,1749867044869,-3000.0,0.0002352,2]
[365744379,1749867044880,-3000.0,0.0002353,2]
[365744380,1749867044890,-3000.0,0.0002354,2]
[365744381,1749867044901,-800.0,0.00023549,2]
[365744382,1749867044911,-3000.0,0.0002355,2]
[365744383,1749867044923,-200.0,0.00023552,2]
[365744384,1749867044934,-1555.03753635,0.00023555,9]
[365744385,1749867044943,-3000.0,0.0002356,2]
[365744386,1749867044953,-161.069961,0.0002356,7]
[365744387,1749867044962,-151.0,0.0002356,7]
[365744388,1749867044973,-151.0,0.0002356,7]
[365744389,1749867044983,-160.244393,0.0002356,7]
[365744390,1749867044993,-160.244393,0.0002356,7]
[365744391,1749867045002,-153.309391,0.0002356,7]
[365744392,1749867045011,-153.309391,0.0002356,7]
[365744393,1749867045020,-200.0,0.00023561,4]
[365744394,1749867045031,-152.3970261,0.00023561,4]
[365744395,1749867045040,-152.437,0.00023562,2]
[365744396,1749867045050,-250.0,0.00023562,2]
[365744397,1749867045060,-249.539,0.00023562,2]
[365744398,1749867045159,-258.421,0.00023562,2]
[365744399,1749867045169,-215.773,0.00023562,2]
[365744400,1749867045179,-966.355,0.00023562,2]
[365744401,1749867045188,-2160.0,0.00023562,2]
[365744402,1749867045197,-653.0,0.00023562,2]
[365744403,1749867045207,-3000.0,0.0002357,2]
[365744404,1749867045217,-200.0,0.00023573,2]
[365744405,1749867045226,-200.0,0.00023578,2]
[365744406,1749867045235,-151.0,0.00023578,7]
[365744407,1749867045244,-151.0,0.00023578,7]
[365744408,1749867045254,-3000.0,0.0002358,2]
[365744409,1749867045264,-151.0,0.0002358,7]
[365744410,1749867045273,-174.219636,0.0002358,7]
[365744411,1749867045282,-151.0,0.0002358,7]
[365744412,1749867045291,-151.0,0.0002358,7]
[365744413,1749867045301,-154.239679,0.0002358,7]
[365744414,1749867045310,-151.0,0.0002358,7]
[365744415,1749867045320,-151.0,0.0002358,7]
[365744416,1749867045330,-3000.0,0.0002359,2]
[365744417,1749867045340,-364.640798,0.000236,7]
[365744418,1749867045351,-152.619152,0.000236,7]
[365744419,1749867045362,-151.0,0.000236,7]
[365744420,1749867045372,-151.0,0.000236,7]
[365744421,1749867045383,-3000.0,0.000236,2]
[365744422,1749867045393,-151.0,0.000236,7]
[365744423,1749867045402,-151.0,0.000236,10]
[365744424,1749867045412,-151.0,0.000236,10]
[365744425,1749867045423,-3000.0,0.0002361,2]
[365744427,1749867045432,-3000.0,0.0002362,2]
[365744429,1749867045441,-1200.0,0.00023621,2]
[365744431,1749867045452,-1000.0,0.00023621,2]
[365744433,1749867045462,-1000.0,0.00023621,2]
[365744435,1749867045471,-1000.0,0.00023621,2]
[365744436,1749867045481,-1000.0,0.00023621,2]
[365744437,1749867045493,-500.92342161,0.00023621,2]
[365744438,1749867045502,-701.09448814,0.00023621,2]
[365744439,1749867045511,-1000.0,0.00023621,2]
[365744440,1749867045522,-3000.0,0.0002363,2]
[365744441,1749867045531,-151.0,0.0002363,7]
[365744442,1749867045540,-152.520026,0.0002363,7]
[365744443,1749867045550,-152.269186,0.0002363,7]
[365744444,1749867045560,-153.451976,0.0002363,7]
[365744445,1749867045570,-3000.0,0.0002364,2]
[365744446,1749867045580,-168.0,0.00023645,2]
[365744447,1749867045590,-3000.0,0.0002365,2]
[365744448,1749867045599,-554.84867809,0.00023657,4]
[365744449,1749867045609,-896.99,0.00023657,4]
[365744450,1749867045619,-1169.14,0.00023657,4]
[365744451,1749867045629,-3988.47,0.00023657,4]
[365744452,1749867045638,-460.0,0.00023657,4]
[365744453,1749867045647,-742.45,0.00023657,4]
[365744454,1749867045658,-558.16,0.00023657,4]
[365744455,1749867045668,-773.28,0.00023657,4]
[365744456,1749867045678,-1000.32,0.00023657,4]
[365744457,1749867045687,-460.0,0.00023657,4]
[365744458,1749867045696,-1555.03753635,0.00023659,9]
[365744459,1749867045706,-3000.0,0.0002366,2]
[365744460,1749867045715,-460.0,0.00023669,4]
[365744461,1749867045726,-460.0,0.00023669,4]
[365744462,1749867045735,-460.0,0.00023669,4]
[365744463,1749867045744,-1090.84,0.00023669,4]
[365744464,1749867045753,-460.0,0.00023669,4]
[365744465,1749867045762,-622.55,0.00023669,4]
[365744466,1749867045771,-460.0,0.00023669,4]
[365744467,1749867045780,-460.0,0.00023669,4]
[365744468,1749867045789,-588.31,0.00023669,4]
[365744469,1749867045799,-460.0,0.00023669,4]
[365744470,1749867045810,-701.63,0.00023669,4]
[365744471,1749867045819,-479.23088691,0.00023669,4]
[365744472,1749867045829,-1474.07,0.00023669,4]
[365744473,1749867045838,-538.53,0.00023669,4]
[365744474,1749867045847,-460.0,0.00023669,4]
[365744475,1749867045857,-3000.0,0.0002367,2]
[365744477,1749867045865,-493.69,0.0002367,4]
[365744479,1749867045874,-583.12,0.0002367,2]
[365744481,1749867045883,-3000.0,0.0002368,2]
[365744482,1749867045894,-167.63761846,0.0002368,2]
[365744484,1749867045903,-1242.94149564,0.0002368,2]
[365744486,1749867045913,-164.28577677,0.0002368,4]
[365744488,1749867045923,-164.28577677,0.0002368,4]
[365744489,1749867045932,-164.28577677,0.0002368,4]
[365744490,1749867045942,-164.28577677,0.0002368,4]
[365744491,1749867045952,-164.28,0.0002368,4]
[365744492,1749867045961,-159.72228297,0.0002368,4]
[365744493,1749867045970,-159.72228297,0.0002368,4]
[365744494,1749867045980,-159.72228297,0.0002368,4]
[365744495,1749867045990,-159.72228297,0.0002368,4]
[365744496,1749867045999,-159.72228297,0.0002368,4]
[365744497,1749867046026,-159.72228297,0.0002368,4]
[365744498,1749867046035,-159.72228297,0.0002368,4]
[365744499,1749867046045,-159.72228297,0.0002368,4]
[365744500,1749867046055,-159.72228297,0.0002368,4]
[365744501,1749867046064,-159.72228297,0.0002368,4]
[365744503,1749867046074,-159.72228297,0.0002368,4]
[365744505,1749867046084,-3000.0,0.0002369,2]
[365744507,1749867046094,-3000.0,0.000237,2]
[365744509,1749867046106,-151.0,0.000237,7]
[365744511,1749867046116,-639.0,0.000237,2]
[365744513,1749867046125,-159.72,0.000237,4]
[365744515,1749867046135,-3000.0,0.0002371,2]
[365744517,1749867046144,-160.0,0.00023711,2]
[365744519,1749867046153,-215.0738,0.00023713,2]
[365744521,1749867046163,-3000.0,0.0002372,2]
[365744523,1749867046172,-3000.0,0.0002373,2]
[365744524,1749867046181,-4189.415714,0.0002374,2]
[365744525,1749867046190,-800.0,0.00023752,2]
[365744527,1749867046201,-168.0,0.00023759,2]
[365744529,1749867046210,-1555.03753635,0.00023762,9]
[365744531,1749867046219,-514.33,0.00023773,2]
[365744533,1749867046229,-500.0,0.00023773,2]
[365744535,1749867046238,-501.05540923,0.00023773,2]
[365744536,1749867046248,-500.98830008,0.00023773,2]
[365744538,1749867046257,-500.0,0.00023773,2]
[365744540,1749867046267,-500.0,0.00023773,2]
[365744541,1749867046277,-500.0,0.00023773,2]
[365744542,1749867046286,-500.0,0.00023773,2]
[365744543,1749867046295,-500.0,0.00023773,2]
[365744544,1749867046305,-500.14996127,0.00023773,2]
[365744545,1749867046314,-151.99757932,0.00023773,2]
[365744546,1749867046323,-502.24838688,0.00023773,2]
[365744547,1749867046332,-500.0,0.00023773,2]
[365744548,1749867046341,-500.0,0.00023773,2]
[365744549,1749867046351,-500.0,0.00023773,2]
[365744550,1749867046360,-500.0,0.00023773,2]
[365744551,1749867046370,-151.0,0.00023773,7]
[365744552,1749867046379,-226497.72074549,0.0002378,5]
[365744553,1749867046424,-460.0,0.00022561,4]
[365744554,1749867046434,-429.88540338,0.00022835,4]
[365744555,1749867046443,-3102.60930586,0.0002378,5]
[365744556,1749867046454,-2450.93275597,0.0002378,5]
[365744557,1749867046465,-16608.86107523,0.0002378,5]
[365744558,1749867046476,-2408.84366708,0.0002378,5]
[365744559,1749867046490,-7084.82779468,0.0002378,5]
[365744560,1749867046518,-344.86486816,0.00021203,4]
[365744561,1749867046528,-460.0,0.00021204,4]
[365744562,1749867046538,-367.94,0.00022016,3]
[365744563,1749867046547,-546.42904833,0.00022173,2]
[365744564,1749867046557,-1029.76146418,0.0002378,5]
[365744565,1749867046569,-6223.71728462,0.0002378,5]
[365744566,1749867046579,-36676.53344494,0.0002378,5]
[365744567,1749867046590,-1254.52967944,0.0002378,5]
[365744568,1749867046624,-12003.4414662,0.0002378,5]
[365744569,1749867046653,-180.81256741,0.0002378,5]
[365744570,1749867049189,-193.3401252,0.00021203,2]
[365744571,1749867051140,-173.17858177,0.00021084,2]
[365744572,1749867051164,-52.5487126,0.00021203,4]
[365744583,1749867386744,262.434265,0.00024975,120]
[365744587,1749867550612,-172.838548,0.00020641,2]
[365744588,1749867550633,-361.88750843,0.00021104,2]
[365744589,1749867550656,-300.0,0.0002119,2]
[365744590,1749867550680,-300.0,0.0002119,2]
[365744591,1749867550702,-380.06092932,0.00021191,4]
[365744592,1749867550723,-380.0,0.00021191,4]
[365744593,1749867550749,-370.0,0.00021191,4]
[365744594,1749867550771,-460.0,0.00021191,4]
[365744595,1749867550792,-426.13961418,0.00021191,4]
[365744596,1749867550813,-464.73192859,0.00021191,4]
[365744597,1749867550833,-460.0,0.00021191,4]
[365744598,1749867550855,-460.0,0.00021191,4]
[365744599,1749867550878,-294.34147148,0.00021191,4]
[365744602,1749867798738,378.0,0.00024657,120]
[365744603,1749867826533,4637.0,0.0002,2]
[365744604,1749867929641,-154.16074048,0.00020189,2]
[365744605,1749867933308,259.51324761,0.0002,2]
[365744606,1749867936421,800.0,0.00019469,2]
[365744607,1749867953918,-285.19929943,0.00020188,2]
[365744609,1749867964599,4285.92980872,0.0002,2]
[365744612,1749868009452,4629.42312743,0.0002,2]
[365744613,1749868009479,370.57687257,0.0002,2]
[365744614,1749868028117,-14.80070057,0.00020188,2]
[365744615,1749868028141,-12561.05907253,0.00020189,2]
[365744617,1749868037364,-4260.77038958,0.00020189,2]
[365744618,1749868043084,-442.25101307,0.00020189,2]
[365744619,1749868054075,-1516.79929223,0.00020189,2]
[365744620,1749868072320,4854.46463826,0.00018,2]
[365744621,1749868083936,5000.0,0.0002,2]
[365744622,1749868094407,152.07702517,0.00024944,120]
[365744628,1749868143840,5000.0,0.0002,2]
[365744629,1749868150102,-904.42558971,0.00020189,2]
[365744630,1749868150124,-2883.93616803,0.00020432,2]
[365744631,1749868154459,153.08203363,6.8e-07,2]
[365744632,1749868154569,153.08203363,6.8e-07,2]
[365744633,1749868154670,153.08203363,6.8e-07,2]
[365744634,1749868154763,153.08203363,6.8e-07,2]
[365744638,1749868164100,-8803.6383493,0.00020189,2]
[365744639,1749868164122,-2409.91908468,0.00020228,2]
[365744640,1749868166105,-564.038448,0.00020228,2]
[365744641,1749868171092,-1960.0,0.00020228,2]
[365744645,1749868197161,162.272538,0.00013699,2]
[365744655,1749868232004,-66.04246732,0.00020228,2]
[365744656,1749868232014,-177.59449328,0.0002037,2]
[365744657,1749868232023,-105.46121647,0.00020432,2]
[365744658,1749868232034,-1414.39122735,0.00021,2]
[365744659,1749868232046,-431.444482,0.00021,2]
[365744660,1749868232058,-2754.16429065,0.00021,2]
[365744661,1749868232067,-316.65156992,0.0002109,2]
[365744662,1749868232077,-300.0,0.00021188,2]
[365744663,1749868232086,-300.0,0.00021188,2]
[365744664,1749868232095,-1200.0,0.00021188,2]
[365744665,1749868232104,-460.0,0.00021189,4]
[365744666,1749868232114,-355.04618047,0.00021189,4]
[365744667,1749868232124,-443.95144606,0.00021189,4]
[365744668,1749868232133,-767.62,0.00021189,4]
[365744669,1749868232142,-3362.78,0.00021189,4]
[365744670,1749868232151,-214.3276454,0.00021189,4]
[365744671,1749868232162,-373.4423546,0.00021189,4]
[365744672,1749868232172,-34.52405558,0.00021189,4]
[365744673,1749868232184,-940.26594442,0.00021189,4]
[365744674,1749868232193,-460.0,0.00021189,4]
[365744675,1749868232202,-460.0,0.00021189,4]
[365744676,1749868232212,-252.55696084,0.00021189,4]
[365744677,1749868232223,-388.65303916,0.00021189,4]
[365744678,1749868232232,-791.92,0.00021189,4]
[365744679,1749868232241,-66.76143034,0.00021189,4]
[365744700,1749868237951,-583.76548506,0.00020978,2]
[365744701,1749868238009,-3184.53346006,0.00020978,2]
[365744702,1749868238020,-798.52629353,0.00020978,2]
[365744703,1749868238032,-433.17476135,0.00020978,2]
[365744704,1749868238042,-393.23856966,0.00021189,4]
[365744705,1749868238051,-52.20776426,0.00021189,4]
[365744706,1749868238063,-408.83223574,0.00021189,4]
[365744707,1749868238073,-461.82590548,0.00021189,4]
[365744708,1749868238082,-466.68812172,0.00021189,4]
[365744709,1749868238092,-460.0,0.00021189,4]
[365744710,1749868238101,-460.0,0.00021189,4]
[365744711,1749868238111,-460.0,0.00021189,4]
[365744712,1749868238120,-468.6617937,0.00021189,4]
[365744713,1749868238129,-163.17704738,0.0002119,4]
[365744714,1749868238138,-475.6638272,0.0002119,4]
[365744715,1749868238148,-456.00286502,0.0002119,4]
[365744716,1749868238157,-469.43628336,0.0002119,4]
[365744717,1749868238167,-593.82954701,0.0002119,4]
[365744718,1749868238176,-260.23198759,0.0002119,4]
[365744719,1749868238184,-460.0,0.0002119,4]
[365744720,1749868238194,-460.0,0.0002119,4]
[365744721,1749868238203,-460.0,0.0002119,4]
[365744722,1749868238212,-460.0,0.0002119,4]
[365744723,1749868238221,-460.0,0.0002119,4]
[365744724,1749868238230,-460.0,0.0002119,4]
[365744725,1749868238240,-460.0,0.0002119,4]
[365744726,1749868238249,-460.0,0.0002119,4]
[365744727,1749868238258,-460.0,0.0002119,4]
[365744728,1749868238268,-436.02729414,0.0002119,4]
[365744729,1749868238277,-614.97,0.0002119,2]
[365744730,1749868238286,-161.6070004,0.0002119,4]
[365744731,1749868238295,-460.0,0.0002119,4]
[365744732,1749868238304,-460.0,0.0002119,4]
[365744733,1749868238314,-460.0,0.0002119,4]
[365744734,1749868238323,-252.27738274,0.0002119,4]
[365744735,1749868238335,-207.72261726,0.0002119,4]
[365744736,1749868238344,-492.85,0.0002119,4]
[365744737,1749868238353,-298.64046274,0.0002119,4]
[365744738,1749868238364,-161.35953726,0.0002119,4]
[365744739,1749868238375,-460.0,0.0002119,4]
[365744740,1749868238384,-443.50535071,0.0002119,4]
[365744741,1749868238394,-460.0,0.0002119,4]
[365744742,1749868238403,-460.0,0.0002119,4]
[365744743,1749868238412,-486.56,0.0002119,4]
[365744744,1749868238421,-460.0,0.0002119,4]
[365744745,1749868238431,-467.39292669,0.0002119,4]
[365744746,1749868238440,-460.0,0.0002119,4]
[365744747,1749868238449,-400.0,0.0002119,4]
[365744748,1749868238459,-460.0,0.0002119,4]
[365744749,1749868238468,-460.0,0.0002119,4]
[365744750,1749868238478,-460.0,0.0002119,4]
[365744751,1749868238487,-581.52,0.0002119,4]
[365744752,1749868238496,-460.0,0.0002119,4]
[365744753,1749868238506,-440.55176495,0.0002119,4]
[365744754,1749868238515,-1231.38,0.0002119,4]
[365744755,1749868238525,-373.86751185,0.0002119,4]
[365744756,1749868238535,-433.62614458,0.0002119,4]
[365744757,1749868238545,-442.02298009,0.0002119,4]
[365744758,1749868238554,-460.0,0.0002119,4]
[365744759,1749868238564,-460.0,0.0002119,4]
[365744760,1749868238573,-460.0,0.0002119,4]
[365744761,1749868238584,-174.7671206,0.00021191,4]
[365744762,1749868238593,-430.35390322,0.00021191,4]
[365744763,1749868238602,-164.1306636,0.00021191,4]
[365744764,1749868238611,-401.27565083,0.00021191,4]
[365744765,1749868238621,-460.0,0.00021191,4]
[365744766,1749868238630,-367.14667107,0.00021191,4]
[365744767,1749868238639,-390.0,0.00021191,4]
[365744768,1749868238648,-39.16171466,0.00021191,4]
[365744769,1749868238660,-370.72228711,0.00021191,4]
[365744770,1749868238669,-394.04909701,0.00021191,4]
[365744771,1749868238678,-236.22860178,0.00021191,4]
[365744772,1749868238689,-119.03506103,0.00021191,4]
[365744773,1749868238698,-460.0,0.00021191,4]
[365744774,1749868238707,-394.24765437,0.00021191,4]
[365744775,1749868238716,-426.31360367,0.00021191,4]
[365744776,1749868238727,-148.21464402,0.00021191,4]
[365744777,1749868238742,-49.93683935,0.00021191,4]
[365744778,1749868238751,-459.87659794,0.00021191,4]
[365744779,1749868238760,-224.43,0.00021191,2]
[365744780,1749868238769,-381.31812567,0.00021191,4]
[365744781,1749868238778,-360.76250558,0.00021191,4]